[Event "10th Norway Chess Blitz 2022"]
[Site "Stavanger"]
[Date "2022.05.30"]
[Round "9.1"]
[White "Mamedyarov, Shakhriyar"]
[Black "Carlsen, Magnus"]
[Result "1/2-1/2"]
[ECO "E60"]
[WhiteElo "2770"]
[BlackElo "2864"]
[Annotator "TA"]
[PlyCount "117"]
[EventDate "2022.05.30"]
[EventType "tourn"]
[EventCountry "NOR"]
[SourceTitle "playchess.com"]
[Source "ChessBase"]
[SourceQuality "1"]
[TimeControl "180+2"]

{[%evp 9,117,12,20,20,14,-8,35,25,28,36,23,20,20,3,33,25,32,0,0,4,4,0,0,0,0,-21,-20,-41,-27,-33,0,0,0,0,0,0,21,20,14,19,12,14,42,34,39,46,44,28,37,0,0,0,0,0,0,0,0,0,0,0,0,-22,-15,-63,0,-20,-20,-35,-28,-20,0,-14,-14,-14,-13,-31,0,0,8,0,0,-101,-101,-176,-176,-176,0,0,0,0,0,0,0,0,0,0,0,0,0,0,0,0,0,0,0,0,0,0,8,0]} 1. d4 {[%emt 0:00:01]} Nf6 {[%emt 0:00:01]} 2. c4 {[%emt 0:00:01]} g6 {[%emt 0:00:02]} 3. Nf3 {[%emt 0:00:02]} Bg7 {[%emt 0:00:03]} 4. g3 {[%emt 0:00:02]} c6 {[%emt 0:00:14]} 5. Bg2 {[%emt 0:00:02]} Qa5+ {[%emt 0:00:04]} (5... d5 6. Nbd2 a5 7. b3 a4 8. Ba3 axb3 9. axb3 O-O 10. O-O Re8 11. e3 Bf5 12. Qe2 Na6 13. Ne5 Ne4 14. cxd5 cxd5 15. Nxe4 Bxe4 16. Bxe4 dxe4 {½-½ (58) Mamedyarov,S (2801)-Carlsen,M (2842) Saint Louis 2018 CBM 186 [Fernandez,D]}) 6. Bd2 {[%emt 0:00:18] E60: King's Indian: Unusual lines and Fianchetto Variation without Nc3.} Qa6 {[%emt 0:00:02] [#]} 7. b3 $146 {[%emt 0:00:05]} ({Predecessor:} 7. Qb3 d6 8. O-O O-O 9. Nc3 Be6 10. d5 cxd5 11. cxd5 Bd7 12. Rfc1 Rc8 13. h3 {0-1 (58) Cheparinov,I (2670)-Saric,I (2667) chess24.com INT 2020}) 7... b5 {[%emt 0:00:15]} 8. cxb5 {[%emt 0:00:13] White is slightly better.} cxb5 {[%emt 0:00:02]} 9. a4 {[%emt 0:00:06]} Bb7 {[%emt 0:00:07]} 10. Nc3 {[%emt 0:00:03]} bxa4 {[%emt 0:00:02]} 11. Nxa4 {[%emt 0:00:06]} Qb5 {[%emt 0:00:01]} 12. Nc3 {[%emt 0:00:11]} Qb6 {[%emt 0:00:02]} 13. Na4 {[%emt 0:00:02]} Qd8 {[%emt 0:00:08]} 14. O-O {[%emt 0:00:05]} O-O {[%emt 0:00:05]} 15. Nc5 {[%emt 0:00:11]} Bc6 {[%emt 0:00:03]} 16. Ba5 {[%emt 0:00:09]} Qc8 {[%emt 0:00:08]} 17. Qb1 {[%emt 0:00:25]} d6 {[%emt 0:00:03]} 18. Nd3 {[%emt 0:00:02]} Qb7 {[%emt 0:00:04]} 19. Rc1 {[%emt 0:00:02]} Rc8 {[%emt 0:00:03]} (19... Be4 $5 {[%cal Rb8c6]}) 20. Nb4 {[%emt 0:00:09]} Be4 {[%emt 0:00:13] Inhibits Qc2.} 21. Rxc8+ {[%emt 0:00:20]} Qxc8 {[%emt 0:00:02]} 22. Qc1 {[%emt 0:00:03]} Nbd7 {[%emt 0:00:28]} 23. Nd2 {[%emt 0:00:09]} Bxg2 {[%emt 0:00:08]} 24. Qxc8+ {[%emt 0:00:02]} Rxc8 {[%emt 0:00:02]} 25. Kxg2 {[%emt 0:00:01]} d5 {[%emt 0:00:29]} 26. e3 {[%emt 0:00:07]} e6 {[%emt 0:00:01]} 27. Nd3 {[%emt 0:00:09]} Bf8 {[%emt 0:00:06]} 28. Ra2 {[%emt 0:00:03]} Ne4 {[%emt 0:00:08]} 29. Nxe4 {[%emt 0:00:05]} dxe4 {[%emt 0:00:02]} 30. Ne5 {[%emt 0:00:03]} Nxe5 {[%emt 0:00:20]} 31. dxe5 $11 {[%emt 0:00:01][%mdl 4096] Endgame KRB-KRB} Rb8 {[%emt 0:00:10]} 32. b4 {[%emt 0:00:15]} Rb7 {[%emt 0:00:12]} 33. Rc2 {[%emt 0:00:02]} Rb5 $1 {[%emt 0:00:05]} (33... Bxb4 $2 34. Rb2 $18) 34. Rc8 {[%emt 0:00:24] [#] Threatens to win with Bd8.} Rxe5 {[%emt 0:00:02]} 35. Bc7 {[%emt 0:00:09]} Rd5 {[%emt 0:00:01]} 36. Ra8 {[%emt 0:00:01]} (36. Bb8 $11 {is more appropriate.}) 36... Rd7 {[%emt 0:00:05]} ({Better is} 36... Kg7 $15) 37. Be5 {[%emt 0:00:02]} f5 {[%emt 0:00:04]} 38. Bd4 {[%emt 0:00:01]} Kf7 39. b5 Bd6 {[%emt 0:00:06]} 40. Rxa7 {[%emt 0:00:03]} Rxa7 {[%emt 0:00:00]} 41. Bxa7 {[%emt 0:00:01] KB-KB} Ke8 {[%emt 0:00:01]} 42. f3 {[%emt 0:00:04]} exf3+ {[%emt 0:00:02]} 43. Kxf3 {[%emt 0:00:01]} g5 {[%emt 0:00:01]} 44. h3 {[%emt 0:00:01]} h5 {[%emt 0:00:01]} 45. Bd4 {[%emt 0:00:07]} (45. g4 $11 fxg4+ 46. hxg4) 45... g4+ $17 {[%emt 0:00:01]} 46. hxg4 {[%emt 0:00:01]} (46. Kg2 $17) 46... fxg4+ $19 {[%emt 0:00:01]} 47. Kf2 {[%emt 0:00:02] [#]} Kd7 $2 {[%emt 0:00:01]} (47... e5 $1 $19 {[%cal Re5d4]} 48. Ba7 e4) 48. e4 $11 {[%emt 0:00:01][%cal Be3e4,Be4e5][%mdl 32] The position is equal.} Kc7 {[%emt 0:00:01]} 49. e5 {[%emt 0:00:01]} Ba3 {[%emt 0:00:03]} 50. Ke3 {[%emt 0:00:01]} Bc1+ {[%emt 0:00:01]} 51. Ke4 {[%emt 0:00:01]} Kb7 {[%emt 0:00:01]} 52. Bf2 {[%emt 0:00:01]} Bg5 {[%emt 0:00:01]} 53. Bd4 {[%emt 0:00:02]} Bd2 {[%emt 0:00:04]} 54. Bf2 {[%emt 0:00:01]} Kc7 {[%emt 0:00:01]} 55. Bc5 {[%emt 0:00:04]} Be1 {[%emt 0:00:02]} 56. Kf4 {[%emt 0:00:00]} Bd2+ {[%emt 0:00:02]} 57. Be3 {[%emt 0:00:02]} Be1 {[%emt 0:00:06]} 58. Bd4 {[%emt 0:00:05]} Kb7 {[%emt 0:00:02]} 59. Be3 {[%emt 0:00:01] Weighted Error Value: White=0.13 (very precise) /Black=0.11 (very precise)} 1/2-1/2

[Event "10th Norway Chess Blitz 2022"]
[Site "Stavanger"]
[Date "2022.05.30"]
[Round "9.2"]
[White "Vachier-Lagrave, Maxime"]
[Black "Anand, Viswanathan"]
[Result "1-0"]
[ECO "C54"]
[WhiteElo "2750"]
[BlackElo "2751"]
[Annotator "TA"]
[PlyCount "69"]
[EventDate "2022.05.30"]
[EventType "tourn"]
[EventCountry "NOR"]
[SourceTitle "playchess.com"]
[Source "ChessBase"]
[SourceQuality "1"]
[TimeControl "180+2"]

{[%evp 11,69,0,1,-7,0,0,-9,-7,-20,-45,-30,-100,-99,-110,-93,-125,-68,-112,-26,-25,-29,-38,-26,-29,37,0,61,0,0,0,0,-8,22,25,406,78,58,35,39,20,22,10,38,32,75,11,33,27,28,28,93,84,87,102,273,264,263,301,292,287]} 1. e4 {[%emt 0:00:01]} e5 {[%emt 0:00:00]} 2. Nf3 {[%emt 0:00:01]} Nc6 {[%emt 0:00:01]} 3. Bc4 {[%emt 0:00:02]} Bc5 {[%emt 0:00:01]} 4. c3 {[%emt 0:00:12]} Nf6 {[%emt 0:00:02][%cal Bg8f6,Bf6e4,Be4d2][%mdl 32]} 5. d4 {[%emt 0:00:01]} exd4 {[%emt 0:00:01]} 6. cxd4 {[%emt 0:00:01]} Bb4+ {[%emt 0:00:01]} 7. Nbd2 {[%emt 0:00:04] C54: Giuoco Piano: 4 c3 Nf6, main lines with 5 d4 and 5 d3.} Bxd2+ {[%emt 0:00:06]} 8. Bxd2 {[%emt 0:00:04]} Nxe4 {[%emt 0:00:01]} 9. d5 {[%emt 0:00:01] The position is equal.} Ne7 {[%emt 0:00:01] [#]} 10. Qe2 $1 $146 {[%emt 0:00:54][%mdl 8] A top novelty.} ({Predecessor:} 10. Bb4 d6 11. O-O O-O 12. Re1 a5 13. Bxa5 Nxf2 14. Qd2 Ng4 15. Bc3 Ng6 16. h3 {0-1 (29) Burke,J (2573)-Dominguez Perez,L (2756) Saint Louis 2022}) 10... Nxd2 {[%emt 0:00:04]} 11. Kxd2 {[%emt 0:00:01]} (11. Qxd2 $11 d6 12. h3) 11... O-O {[%emt 0:00:07]} 12. Rae1 {[%emt 0:00:02]} Nf5 {[%emt 0:00:03]} 13. g4 {[%emt 0:00:04]} Nh4 {[%emt 0:00:06]} (13... Nd6 $17 14. Bd3 Re8) 14. d6 $15 {[%emt 0:00:06]} cxd6 {[%emt 0:00:04]} (14... Ng6 $1 $17 {And now ...b5 would win.} 15. Ne5 cxd6 16. Nxg6 (16. Bxf7+ Rxf7 17. Nxf7 Qf6 $17) 16... hxg6) 15. Nxh4 $1 $11 Qxh4 {[%emt 0:00:01]} 16. Qf3 {[%emt 0:00:05][%cal Of3f7] White wants to mate with Qxf7+!} d5 {[%emt 0:00:19]} 17. Bxd5 {[%emt 0:00:04][%cal Of3f7] Qxf7+! would kill now.} Qh6+ {[%emt 0:00:03]} ({Much less strong is} 17... h5 18. Bxf7+ $1 (18. Re8 Qg5+ 19. Kc2 Rxe8 $17) 18... Kh8 19. Bg6 Qg5+ 20. Kd1 $14) (17... h6 $11) 18. Kd1 {[%emt 0:00:15][%cal Of3f7][%mdl 1024] Intending Qxf7+! and mate. White has compensation.} (18. Kc3 $5 {[%cal Rf3f7]} g5 19. Re7 $14) 18... Qd6 {[%emt 0:00:11]} (18... Qg6 $11 19. Re7 h6) 19. Kc1 {[%emt 0:00:06]} (19. h4 $14) 19... Rb8 {[%emt 0:00:03]} 20. Re3 $40 {[%emt 0:00:15][%mdl 128] Black needs to defend precisely. Active counter play!} b5 {[%emt 0:00:07]} 21. Rd1 {[%emt 0:00:01][%cal Od5f7]} (21. Re8 $5 {[%cal Rf3f7]} Qh6+ 22. Kd1 $11) 21... Qc5+ {[%emt 0:00:04]} 22. Kb1 {[%emt 0:00:02] Strongly threatening Qf5.} b4 $2 {[%emt 0:00:16][%mdl 8192] [#]} (22... Kh8 $11 {and Black stays safe.}) 23. Re8 $3 {[%emt 0:00:06][%mdl 512]} Ba6 $16 {[%emt 0:00:11]} 24. Qxf7+ {[%emt 0:00:05]} Kh8 {[%emt 0:00:01]} 25. Qxf8+ {[%emt 0:00:32]} Qxf8 {[%emt 0:00:01]} 26. Rxf8+ {[%emt 0:00:02]} Rxf8 $14 {[%emt 0:00:01][%mdl 4096] Endgame KRB-KRB} 27. f3 {[%emt 0:00:05]} g5 {[%emt 0:00:06]} 28. Re1 {[%emt 0:00:05]} ({White should play} 28. Be4 $16 Rf7 29. Rd5) 28... Bd3+ {[%emt 0:00:07]} 29. Kc1 {[%emt 0:00:02]} Bg6 {[%emt 0:00:02]} 30. Kd2 {[%emt 0:00:13]} Rf6 {[%emt 0:00:02]} (30... Rc8 $11 {keeps the balance.}) 31. Re5 $16 {[%emt 0:00:03]} Rd6 {[%emt 0:00:06] Threatens to win with ...Bf7.} 32. Ke3 {[%emt 0:00:01]} ({Wrong is} 32. Rxg5 $2 Bf7 33. Ke3 Bxd5 $19) 32... Kg7 $2 {[%emt 0:00:03]} (32... h6 $16) 33. Rxg5 $18 {[%emt 0:00:06] White has a decisive advantage.} Kf6 {[%emt 0:00:05]} 34. f4 {[%emt 0:00:02]} Rb6 {[%emt 0:00:08]} 35. Re5 {[%emt 0:00:04] Weighted Error Value: White=0.39/Black=0.53} 1-0

[Event "10th Norway Chess Blitz 2022"]
[Site "Stavanger"]
[Date "2022.05.30"]
[Round "9.3"]
[White "Tari, Aryan"]
[Black "Wang, Hao"]
[Result "1-0"]
[ECO "B23"]
[WhiteElo "2654"]
[BlackElo "2744"]
[Annotator "TA"]
[PlyCount "122"]
[EventDate "2022.05.30"]
[EventType "tourn"]
[EventCountry "NOR"]
[SourceTitle "playchess.com"]
[Source "ChessBase"]
[SourceQuality "1"]
[TimeControl "180+2"]

{[%evp 9,122,4,4,-19,-18,-18,18,10,20,-31,-37,-27,-27,-41,66,64,103,103,109,108,90,39,46,45,64,46,47,28,41,48,74,56,48,30,43,35,34,26,45,18,25,25,32,0,102,94,85,98,123,95,407,391,378,47,51,0,30,20,25,0,0,0,20,17,28,7,71,8,41,35,41,18,57,0,0,0,0,0,0,0,0,0,0,0,0,0,0,-14,0,-16,0,0,0,0,0,0,0,0,8,8,8,8,56,49,81,81,81,80,29943,29943,29956,29959,29952,12269,4645]} 1. e4 {[%emt 0:00:02]} c5 {[%emt 0:00:01]} 2. Nc3 {[%emt 0:00:01]} d6 {[%emt 0:00:02]} 3. f4 {[%emt 0:00:01]} g6 {[%emt 0:00:02]} 4. Nf3 {[%emt 0:00:02]} Bg7 {[%emt 0:00:01]} 5. Bb5+ {[%emt 0:00:01]} Bd7 {[%emt 0:00:02]} 6. Bc4 {[%emt 0:00:01] B23: Closed Sicilian: Lines without g3.} Nc6 {[%emt 0:00:04]} 7. d3 {[%emt 0:00:01]} a6 {[%emt 0:00:06]} 8. O-O {[%emt 0:00:29] The position is equal.} b5 {[%emt 0:00:01]} 9. Bd5 $5 {[%emt 0:00:17][%mdl 4] An interesting side line.} ({White should play} 9. Bb3 $11) 9... e6 $15 {[%emt 0:00:52]} 10. Bxc6 {[%emt 0:00:02]} Bxc6 {[%emt 0:00:02] [#]} 11. f5 $146 {[%emt 0:00:24]} ({Predecessor:} 11. Qe1 Ne7 12. Bd2 Qd7 13. Qf2 O-O 14. Rae1 Rac8 15. Qh4 f6 16. g4 Kf7 17. f5 exf5 18. gxf5 {1-0 (38) Vera Balague,G (1929)-Juanco Elizari,F (1789) Huarte 2013}) 11... Ne7 {[%emt 0:00:02]} (11... exf5 $15 12. exf5 Ne7) 12. fxe6 $14 {[%emt 0:00:16]} fxe6 {[%emt 0:00:02] [#]} 13. Ng5 $1 {[%emt 0:00:06]} Qd7 {[%emt 0:00:25]} 14. Qg4 {[%emt 0:00:06] White is more active.} O-O-O {[%emt 0:00:38]} 15. Qxe6 {[%emt 0:00:25]} ({Better is} 15. Nxe6 $16 {Strongly threatening Qh3.} Bd4+ 16. Kh1) 15... h6 {[%emt 0:00:19]} 16. Qxd7+ {[%emt 0:00:03]} Kxd7 {[%emt 0:00:02]} 17. Nf3 {[%emt 0:00:13]} (17. Nf7 {looks sharper.} Rdf8 18. Bd2 Rh7 19. e5) 17... g5 {[%emt 0:00:17]} 18. Rb1 {[%emt 0:00:14]} Rhf8 {[%emt 0:00:08]} 19. Be3 {[%emt 0:00:02]} Ng6 {[%emt 0:00:09]} 20. h3 {[%emt 0:00:05]} Rde8 {[%emt 0:00:02]} 21. Rbe1 {[%emt 0:00:07]} b4 {[%emt 0:00:05]} 22. Nd1 {[%emt 0:00:01]} a5 {[%emt 0:00:01]} 23. b3 {[%emt 0:00:01]} a4 {[%emt 0:00:01]} 24. Nf2 {[%emt 0:00:07]} axb3 {[%emt 0:00:03]} 25. axb3 {[%emt 0:00:00]} Ra8 {[%emt 0:00:02]} 26. d4 {[%emt 0:00:01][%cal Bd3d4,Bd4c5][%mdl 32]} Ra2 {[%emt 0:00:17]} (26... Bb5 $11 {keeps the balance.}) 27. dxc5 $16 {[%emt 0:00:01]} Bb5 {[%emt 0:00:00]} 28. Rd1 {[%emt 0:00:05]} Bxf1 {[%emt 0:00:08]} 29. Rxd6+ {[%emt 0:00:01]} (29. Kxf1 $6 Ra1 $11) 29... Ke7 $2 {[%emt 0:00:01][%mdl 8192]} (29... Ke8 $16 {is tougher.}) 30. Rxg6 $18 {[%emt 0:00:15] Dancing on a razor blade.} (30. Kxf1 Nf4 $16) 30... Kf7 {[%emt 0:00:02]} 31. Rb6 {[%emt 0:00:14]} (31. Rxg7+ $1 $18 Kxg7 32. Kxf1) 31... Be2 $14 {[%emt 0:00:01]} 32. Nd4 {[%emt 0:00:02]} (32. Rxb4 Bxf3 33. gxf3 Rxc2 $11) (32. Bd4 $1 $14 Kg8 33. Rg6 (33. Rxb4 Rxc2 34. Bxg7 Kxg7 $17)) 32... Bxd4 {[%emt 0:00:05]} 33. Bxd4 {[%emt 0:00:01]} Rxc2 {[%emt 0:00:02]} 34. Rxb4 {[%emt 0:00:03]} Rd8 {[%emt 0:00:01]} 35. Kh2 {[%emt 0:00:08]} h5 {[%emt 0:00:02]} 36. Be3 {[%emt 0:00:03]} g4 {[%emt 0:00:01]} 37. hxg4 {[%emt 0:00:01]} hxg4 {[%emt 0:00:02] [#]} (37... Bxg4 $11 38. Rb7+ (38. Nxg4 hxg4 39. Rb5 Re8 $11) 38... Kf6) 38. Kg3 {[%emt 0:00:01]} (38. Bd4 $1 $16) 38... Ke6 {[%emt 0:00:02]} (38... Rc3 $5 {[%cal Rc3e3]} 39. Kf4 Rf8 $11) 39. Rb6+ {[%emt 0:00:01]} ({Wrong is} 39. Nxg4 $2 Rg8 40. Rb6+ Kd7 $19) 39... Ke5 {[%emt 0:00:02]} 40. Bf4+ {[%emt 0:00:08]} ({Don't blunder} 40. Nxg4+ $2 Bxg4 41. Kxg4 Rg8+ 42. Kf3 Rf8+ 43. Kg4 Rxg2+ 44. Kh3 Rg7 $19) 40... Kd4 {[%emt 0:00:01]} 41. b4 {[%emt 0:00:01]} (41. Bd6 $14) 41... Rc3+ $11 {[%emt 0:00:04]} 42. Kh4 {[%emt 0:00:01]} Rh8+ {[%emt 0:00:03]} 43. Kg5 {[%emt 0:00:02]} g3 {[%emt 0:00:01]} 44. Rd6+ {[%emt 0:00:04]} Kc4 {[%emt 0:00:01]} 45. Nd1 {[%emt 0:00:02]} Bxd1 {[%emt 0:00:03]} 46. Rxd1 {[%emt 0:00:01][%mdl 4096] Endgame Be5 is the strong threat. KRR-KRB} Rg8+ {[%emt 0:00:02]} 47. Kh4 {[%emt 0:00:03] Black must now prevent c6.} Rc2 {[%emt 0:00:02]} 48. Rg1 {[%emt 0:00:08]} Kxb4 {[%emt 0:00:02]} 49. Bxg3 {[%emt 0:00:02]} Rc4 {[%emt 0:00:03]} 50. Bd6 {[%emt 0:00:02]} Rxe4+ {[%emt 0:00:01]} 51. g4 {[%emt 0:00:01][%cal Bg2g4,Bg4g5,Bg5g6,Bg6g7][%mdl 32]} Kb5 {[%emt 0:00:02]} 52. Kh5 {[%emt 0:00:01]} Kc6 {[%emt 0:00:01]} 53. g5 {[%emt 0:00:01]} Rh8+ {[%emt 0:00:03]} 54. Kg6 {[%emt 0:00:01]} Rhe8 {[%emt 0:00:02]} 55. Kf5 {[%emt 0:00:02]} Re2 {[%emt 0:00:01]} (55... Re1 $1 $11 {should be considered.} 56. Rxe1 Rxe1) 56. g6 $14 {[%emt 0:00:01] Threatens to win with g7.} Rf2+ {[%emt 0:00:02]} 57. Kg5 {[%emt 0:00:01] And now g7 would win.} Rg8 {[%emt 0:00:01]} 58. Kh6 {[%emt 0:00:02] Hoping for g7.} Re2 $2 {[%emt 0:00:04][%mdl 8192]} (58... Rh8+ $16 59. Kg7 Rh5) 59. Kh7 {[%emt 0:00:03]} Ree8 {[%emt 0:00:01]} 60. g7 {[%emt 0:00:01]} Ra8 {[%emt 0:00:02]} 61. Rf1 {[%emt 0:00:01]} (61. Rg6 $142 Rxg7+ 62. Kxg7 Re8 63. Be7+ Kd7 64. Bg5 Re4 65. Rd6+ Kc8 66. Kf6) 61... Kd5 {[%emt 0:00:10] Weighted Error Value: White=0.22 (precise) /Black=0.37} 1-0

[Event "10th Norway Chess Blitz 2022"]
[Site "Stavanger"]
[Date "2022.05.30"]
[Round "9.4"]
[White "So, Wesley"]
[Black "Giri, Anish"]
[Result "1/2-1/2"]
[ECO "D85"]
[WhiteElo "2766"]
[BlackElo "2761"]
[Annotator "TA"]
[PlyCount "27"]
[EventDate "2022.05.30"]
[EventType "tourn"]
[EventCountry "NOR"]
[SourceTitle "playchess.com"]
[Source "ChessBase"]
[SourceQuality "1"]
[TimeControl "180+2"]

{[%evp 15,27,25,8,16,37,0,0,0,0,0,0,0,0,0]} 1. d4 {[%emt 0:00:02]} Nf6 {[%emt 0:00:01]} 2. c4 {[%emt 0:00:01]} g6 {[%emt 0:00:01]} 3. Nc3 {[%emt 0:00:02]} d5 {[%emt 0:00:00]} 4. cxd5 {[%emt 0:00:01]} Nxd5 {[%emt 0:00:01]} 5. e4 {[%emt 0:00:01]} Nxc3 {[%emt 0:00:01]} 6. bxc3 {[%emt 0:00:01]} Bg7 {[%emt 0:00:01]} 7. Be3 {[%emt 0:00:05] 7.Nf3 is a critical line.} c5 {[%emt 0:00:01]} 8. Nf3 {[%emt 0:00:01][%cal Bg1f3,Bf3d2,Bd2b3][%mdl 32]} (8. Rc1 Qa5 9. Qd2 cxd4 10. cxd4 Qxd2+ 11. Kxd2 O-O 12. Nf3 Nc6 13. d5 Rd8 14. Ke1 Na5 15. Bg5 Bd7 16. Bd3 Rdc8 17. Ke2 e6 18. Bd2 exd5 19. exd5 b6 20. Ba6 Re8+ 21. Be3 Ba4 22. Rc7 Rad8 23. Rxa7 Rxd5 24. Rc1 Nc6 {½-½ (33) So,W (2770)-Giri,A (2764) Chess.com INT 2020}) 8... Qa5 {[%emt 0:00:03]} 9. Nd2 {[%emt 0:00:02] D85: Exchange Grünfeld: Unusual White 7th moves and lines with 7 Nf3.} O-O {[%emt 0:00:02]} 10. Nb3 {[%emt 0:00:01] [#]} Qxc3+ $1 $146 {[%emt 0:00:01][%mdl 8] The position is equal. A relevant novelty.} ({Predecessor:} 10... Qc7 11. Nxc5 Nd7 12. Na4 a6 13. Rc1 b5 14. Nb2 Bb7 15. f3 Qa5 16. Qb3 e5 {0-1 (64) Grischuk,A (2776)-Nepomniachtchi,I (2792) chess24.com INT 2021}) 11. Bd2 {[%emt 0:00:01]} Qb2 {[%emt 0:00:00]} 12. Bc1 {[%emt 0:00:01]} Qc3+ {[%emt 0:00:01]} 13. Bd2 {[%emt 0:00:00]} Qb2 {[%emt 0:00:01]} 14. Bc1 {[%emt 0:00:01] A balanced but interesting game.  Weighted Error Value: White=0.10 (very precise) /Black=0.06 (flawless)} 1/2-1/2

[Event "10th Norway Chess Blitz 2022"]
[Site "Stavanger"]
[Date "2022.05.30"]
[Round "9.5"]
[White "Topalov, Veselin"]
[Black "Radjabov, Teimour"]
[Result "1/2-1/2"]
[ECO "A01"]
[WhiteElo "2730"]
[BlackElo "2753"]
[Annotator "TA"]
[PlyCount "94"]
[EventDate "2022.05.30"]
[EventType "tourn"]
[EventCountry "NOR"]
[SourceTitle "playchess.com"]
[Source "ChessBase"]
[SourceQuality "1"]
[TimeControl "180+2"]

{[%evp 9,94,4,38,16,25,8,7,1,6,3,16,12,14,0,-6,0,0,-8,9,0,12,7,14,11,25,0,23,21,43,16,8,18,15,20,17,18,24,-5,25,9,44,0,28,0,0,0,0,0,0,0,0,7,0,0,14,-61,-68,-68,-75,-93,-68,-58,0,-710,-23,-710,0,0,0,0,55,-114,0,0,0,0,0,0,0,0,0,0,0,0,0,0,0]} 1. c4 {[%emt 0:00:01]} Nf6 {[%emt 0:00:01]} 2. b3 {[%emt 0:00:08]} e5 {[%emt 0:00:07]} 3. Bb2 {[%emt 0:00:02]} Nc6 {[%emt 0:00:01]} 4. e3 {[%emt 0:00:02]} Be7 {[%emt 0:00:03]} 5. Nf3 {[%emt 0:00:10]} d6 {[%emt 0:00:02]} (5... e4 $5 {[%cal Re4f3]} 6. Nd4 O-O $11) 6. d3 {[%emt 0:00:03] A01: Nimzowitsch-Larsen Opening.} O-O {[%emt 0:00:03]} 7. Nbd2 {[%emt 0:00:02]} Re8 {[%emt 0:00:04]} 8. a3 {[%emt 0:00:02]} a5 {[%emt 0:00:02]} 9. Be2 {[%emt 0:00:01]} Bf8 {[%emt 0:00:03]} 10. O-O {[%emt 0:00:03]} g6 {[%emt 0:00:01]} 11. Ng5 {[%emt 0:00:16]} Bg7 {[%emt 0:00:02]} 12. Nge4 {[%emt 0:00:09][%cal Bg5e4,Be4c3,Bc3d5][%mdl 32]} Nd7 {[%emt 0:00:06]} 13. Nc3 {[%emt 0:00:03] [#]} f5 $146 {[%emt 0:00:05]} ({Predecessor:} 13... Nc5 14. Nd5 Be6 15. Qc2 h6 16. Rfd1 Qc8 17. b4 Nd7 18. Bc3 Nf6 19. Bf3 Bxd5 20. cxd5 Ne7 21. e4 axb4 22. axb4 {½-½ (39) Topalov,V (2761)-Aronian,L (2792) Paris 2016}) 14. Nd5 {[%emt 0:00:05]} Nf6 {[%emt 0:00:04]} 15. Qc2 {[%emt 0:00:09]} Be6 {[%emt 0:00:08]} 16. Bf3 {[%emt 0:00:03]} Kh8 {[%emt 0:00:10]} 17. Bc3 {[%emt 0:00:06]} g5 {[%emt 0:00:06]} 18. g3 {[%emt 0:00:07]} g4 {[%emt 0:00:25]} 19. Bg2 {[%emt 0:00:01]} Bxd5 {[%emt 0:00:03]} 20. cxd5 {[%emt 0:00:01]} Ne7 {[%emt 0:00:01]} 21. e4 {[%emt 0:00:03]} f4 {[%emt 0:00:02]} 22. Rfe1 {[%emt 0:00:11]} Ng6 {[%emt 0:00:02]} 23. b4 {[%emt 0:00:06]} axb4 {[%emt 0:00:10]} 24. axb4 {[%emt 0:00:01]} Rb8 {[%emt 0:00:01]} 25. Nc4 {[%emt 0:00:02]} h5 {[%emt 0:00:06]} 26. d4 {[%emt 0:00:03]} Nd7 {[%emt 0:00:23]} 27. dxe5 {[%emt 0:00:05]} Ndxe5 {[%emt 0:00:02]} 28. Nxe5 {[%emt 0:00:07]} Bxe5 {[%emt 0:00:25]} 29. Bxe5+ {[%emt 0:00:02]} Rxe5 {[%emt 0:00:06]} 30. Rec1 {[%emt 0:00:01]} ({Don't do} 30. Qc1 Qf6 $14) 30... f3 {[%emt 0:00:05]} 31. Bf1 {[%emt 0:00:01]} Re7 {[%emt 0:00:00]} 32. e5 {[%emt 0:00:07]} (32. Qd2 $11 Ne5 33. h4) 32... Nxe5 $15 {[%emt 0:00:03][%cal Oh5h4]} 33. Ra3 {[%emt 0:00:04]} h4 {[%emt 0:00:03]} 34. Rc3 {[%emt 0:00:05]} hxg3 {[%emt 0:00:12]} 35. hxg3 {[%emt 0:00:01]} c6 {[%emt 0:00:07]} (35... Rc8 $15 36. Qf5 Rf7 37. Qh5+ Rh7) 36. Bd3 $2 {[%emt 0:00:13][%mdl 8192]} (36. Qd2 $11) 36... Kg7 $2 {[%emt 0:00:01]} (36... Qe8 $1 $19 {[%cal Re8h5] And now ...Qh5 would win.} 37. dxc6 bxc6) 37. dxc6 $2 {[%mdl 8192] [#]} (37. Qd2 $11) 37... bxc6 $2 {[%emt 0:00:01]} (37... Qe8 $1 $19 {[%cal Re8h5] ( -> ...Qh5)} 38. c7 Rc8) 38. Rxc6 $11 {[%emt 0:00:29]} Nxc6 {[%emt 0:00:28]} 39. Qxc6 {[%emt 0:00:02]} Qe8 {[%emt 0:00:05]} ({Black should try} 39... Qd7 $11 40. Qc3+ Re5) 40. Qxd6 $2 {[%emt 0:00:10] [#]} (40. Qc3+ $14 {keeps the upper hand.} Re5 41. Qd4 (41. Qc7+ Re7 $16)) 40... Re1+ {[%emt 0:00:02]} ({Black should play} 40... Rd8 $1 $17 41. Qa6 Re1+ 42. Rxe1 Qxe1+ 43. Bf1 Qxb4) 41. Rxe1 {[%emt 0:00:00][%mdl 64] Remove Defender. Really sharp! The position is equal.} Qxe1+ {[%emt 0:00:01][%mdl 4096] Endgame KQR-KQB} 42. Bf1 {[%emt 0:00:01]} Rxb4 {[%emt 0:00:10][%cal Oe1f1]} 43. Qc7+ {[%emt 0:00:03]} Kf6 {[%emt 0:00:04][%cal Oe1f1]} 44. Qd6+ {[%emt 0:00:01]} Kf5 {[%emt 0:00:08][%cal Oe1f1]} 45. Qd7+ {[%emt 0:00:04]} Kf6 {[%emt 0:00:03][%cal Oe1f1]} 46. Qd6+ $1 {[%emt 0:00:01]} Kf5 {[%emt 0:00:03][%cal Oe1f1]} 47. Qd7+ {[%emt 0:00:03]} Kf6 {[%emt 0:00:02] Weighted Error Value: White=0.55/Black=0.52} 1/2-1/2